bitfinex-derivatives/quotes_BTCF0:USTF0_20250602
["timestamp","ask_amount","ask_price","bid_price","bid_amount"]
[1748903278865,1.01336646,105790.0,105780.0,0.58190234]
[1748903279865,1.01336646,105790.0,105780.0,0.80190234]
[1748903280065,1.04336646,105790.0,105780.0,0.32014234]
[1748903280361,0.8355019,105790.0,105780.0,0.59126234]
[1748903280566,1.01336646,105790.0,105780.0,0.59126234]
[1748903281161,1.01336646,105790.0,105780.0,0.74126234]
[1748903282263,1.01336646,105790.0,105780.0,0.74102234]
[1748903282860,1.01336646,105790.0,105780.0,0.26014234]
[1748903283060,1.01336646,105790.0,105780.0,0.74078234]
[1748903283667,1.01336646,105790.0,105780.0,0.74054234]
[1748903285159,1.23336646,105790.0,105780.0,0.74054234]
[1748903285366,1.01336646,105790.0,105780.0,0.74054234]
[1748903285571,0.91883446,105790.0,105780.0,0.74054234]
[1748903286368,0.7409699,105790.0,105780.0,0.74054234]
[1748903286571,0.91883446,105790.0,105780.0,0.74054234]
[1748903288569,0.92883446,105790.0,105780.0,0.74054234]
[1748903289088,0.92883446,105790.0,105780.0,0.73922234]
[1748903290273,0.91883446,105790.0,105780.0,0.73890234]
[1748903290572,0.92883446,105790.0,105780.0,0.73890234]
[1748903290977,0.91883446,105790.0,105780.0,0.73890234]
[1748903292075,0.91883446,105790.0,105780.0,0.26014234]
[1748903292378,0.91883446,105790.0,105780.0,0.73822234]
[1748903292768,1.02336646,105790.0,105780.0,0.73802234]
[1748903292971,1.28336646,105790.0,105780.0,0.03014234]
[1748903293177,1.06551092,105790.0,105780.0,0.47790234]
[1748903293384,1.03551092,105790.0,105780.0,0.47790234]
[1748903293765,0.94097892,105790.0,105780.0,0.51790234]
[1748903293972,0.1889699,105790.0,105780.0,1.07669189]
[1748903294172,0.5499699,105790.0,105780.0,0.93860234]
[1748903294471,0.5499699,105790.0,105780.0,1.08159185]
[1748903295482,0.5499699,105790.0,105780.0,1.27058025]
[1748903295670,0.1891699,105790.0,105780.0,1.52562927]
[1748903295866,0.0002,105790.0,105780.0,2.05968957]
[1748903296071,0.01916184,105800.0,105790.0,0.1889705]
[1748903296367,0.646211,105810.0,105790.0,0.1889705]
[1748903296368,0.002,105810.0,105800.0,0.1889527]
[1748903296581,0.002,105810.0,105800.0,1.38109802]
[1748903296770,0.002,105810.0,105800.0,1.42437429]
[1748903297174,0.002,105810.0,105800.0,1.51497169]
[1748903297369,0.0022,105810.0,105800.0,1.51497169]
[1748903298882,0.1911348,105810.0,105800.0,1.98052532]
[1748903299079,0.1911348,105810.0,105800.0,1.80297007]
[1748903299582,0.1911348,105810.0,105800.0,1.89727007]
[1748903300282,0.1911348,105810.0,105800.0,1.42059007]
[1748903300479,0.1911348,105810.0,105800.0,1.89659007]
[1748903300678,0.0022,105810.0,105800.0,1.89649272]
[1748903301082,0.1911349,105810.0,105800.0,0.74578002]
[1748903301282,0.1911349,105810.0,105800.0,0.91398668]
[1748903301587,0.1911349,105810.0,105800.0,1.33226038]
[1748903301588,0.5519349,105810.0,105800.0,1.33226038]
[1748903302080,0.5519349,105810.0,105800.0,0.68817372]
[1748903302286,0.5519349,105810.0,105800.0,1.28885372]
[1748903302688,0.5519349,105810.0,105800.0,0.68817372]
[1748903302889,0.5519349,105810.0,105800.0,1.28861372]
[1748903304392,0.0022,105810.0,105800.0,2.01592157]
[1748903304686,0.1909347,105810.0,105800.0,1.69828823]
[1748903304890,0.1911347,105810.0,105800.0,1.69828823]
[1748903305688,0.1911347,105810.0,105800.0,1.52073298]
[1748903305889,0.1911347,105810.0,105800.0,1.51949298]
[1748903306190,0.0022,105810.0,105800.0,1.22288823]
[1748903306391,0.0022,105810.0,105800.0,2.18563208]
[1748903306686,0.002,105810.0,105800.0,2.18563208]
[1748903306893,0.0022,105810.0,105800.0,2.20976653]
[1748903307077,0.0022,105810.0,105800.0,2.16659987]
[1748903307478,0.002,105810.0,105800.0,2.07208787]
[1748903307895,0.0022,105810.0,105800.0,1.89453262]
[1748903308092,0.0022,105810.0,105800.0,2.07208787]
[1748903308288,0.0022,105810.0,105800.0,2.41659987]
[1748903308588,0.002,105810.0,105800.0,2.41659987]
[1748903308785,0.0022,105810.0,105800.0,2.50306614]
[1748903309194,0.1911246,105810.0,105800.0,1.89413262]
[1748903309693,0.1911246,105810.0,105800.0,1.93722262]
[1748903309893,0.0022,105810.0,105800.0,1.93722262]
[1748903310293,0.1911304,105810.0,105800.0,1.46366262]
[1748903310493,0.1911304,105810.0,105800.0,1.93710262]
[1748903310888,0.0022,105810.0,105800.0,2.00748017]
[1748903311093,0.0022,105810.0,105800.0,1.93710262]
[1748903311294,0.1911304,105810.0,105800.0,1.93710262]
[1748903311695,0.1911304,105810.0,105800.0,0.8708362]
[1748903311887,0.1911304,105810.0,105800.0,1.32903326]
[1748903312892,0.1911304,105810.0,105800.0,0.85619326]
[1748903313097,0.1911304,105810.0,105800.0,1.32863326]
[1748903313296,0.1911304,105810.0,105800.0,1.39907124]
[1748903313497,0.1911304,105810.0,105800.0,0.92651124]
[1748903313692,0.2877304,105810.0,105800.0,0.92651124]
[1748903313898,0.7444304,105810.0,105800.0,1.35593852]
[1748903314797,0.92198565,105810.0,105800.0,0.88341852]
[1748903315096,0.93198565,105810.0,105800.0,0.31877862]
[1748903315394,1.03408565,105810.0,105800.0,0.79097862]
[1748903315599,1.03408565,105810.0,105800.0,0.31877862]
[1748903315798,1.03408565,105810.0,105800.0,0.67758]
[1748903316299,1.03408565,105810.0,105800.0,0.3455]
[1748903316496,1.03408565,105810.0,105800.0,0.72188]
[1748903316694,1.03408565,105810.0,105800.0,0.25]
[1748903316902,1.03408565,105810.0,105800.0,0.72164]
[1748903317401,1.03408565,105810.0,105800.0,0.72152]
[1748903317601,1.03408565,105810.0,105800.0,0.25]
[1748903318107,1.03408565,105810.0,105800.0,0.72132]
[1748903318291,1.03408565,105810.0,105800.0,0.7212]
[1748903318994,1.03408565,105810.0,105780.0,0.11369847]
[1748903318995,0.188966,105790.0,105780.0,0.11369847]
[1748903319210,1.08812125,105790.0,105780.0,0.51603548]
[1748903319422,0.1889838,105780.0,105770.0,0.04318981]
[1748903319620,0.83243905,105780.0,105770.0,0.66108]
[1748903319925,0.1890017,105770.0,105760.0,0.1153582]
[1748903320114,0.92495695,105770.0,105760.0,0.37489479]
[1748903320424,0.95392087,105770.0,105760.0,0.33208018]
[1748903320615,0.95392087,105770.0,105760.0,0.60292018]
[1748903320819,0.95392087,105770.0,105760.0,0.13208018]
[1748903321120,1.40696887,105770.0,105760.0,0.60280018]
[1748903322214,0.1890196,105760.0,105750.0,0.07060575]
[1748903322412,0.82357485,105760.0,105750.0,0.83062234]
[1748903323115,0.82357485,105760.0,105750.0,0.36014234]
[1748903323323,0.91813485,105760.0,105750.0,0.83050234]
[1748903323515,0.6460196,105760.0,105750.0,0.83050234]
[1748903323823,0.92097485,105760.0,105750.0,0.83050234]
[1748903324032,0.92097485,105760.0,105750.0,0.83034234]
[1748903324717,0.92097485,105760.0,105750.0,0.36014234]
[1748903325026,0.92097485,105760.0,105730.0,0.00208077]
[1748903325027,0.1890553,105740.0,105730.0,0.00208077]
[1748903325318,0.1890553,105740.0,105730.0,0.37208077]
[1748903325319,1.08821055,105740.0,105730.0,0.37208077]
[1748903325624,1.19191055,105740.0,105730.0,0.47204077]
[1748903325923,1.19191055,105740.0,105730.0,0.50204077]
[1748903326317,1.19191055,105740.0,105730.0,0.47204077]
[1748903326522,1.19191055,105740.0,105730.0,0.71204077]
[1748903326717,0.1890553,105740.0,105730.0,0.43115397]
[1748903327018,0.1890553,105740.0,105730.0,1.43930832]
[1748903327219,0.1890553,105740.0,105730.0,0.99645307]
[1748903327220,0.5500553,105740.0,105730.0,0.99645307]
[1748903327422,0.1892553,105740.0,105730.0,1.35725307]
[1748903327722,0.1892553,105740.0,105730.0,1.45735307]
[1748903328621,0.0002,105740.0,105730.0,1.63490832]
[1748903328826,0.1892555,105740.0,105730.0,1.63490832]
[1748903329018,0.0002,105740.0,105730.0,1.63490832]
[1748903329214,0.1890555,105740.0,105730.0,1.79985032]
[1748903329420,0.1892555,105740.0,105730.0,1.79985032]
[1748903330324,0.1892555,105740.0,105730.0,1.72943842]
[1748903331436,0.1892555,105740.0,105730.0,1.77190154]
[1748903331920,0.0002,105740.0,105730.0,2.02190154]
[1748903332117,0.0002,105740.0,105730.0,2.11647754]
[1748903332319,0.28370124,105750.0,105740.0,0.1890551]
[1748903332528,0.28370124,105750.0,105740.0,1.40739347]
[1748903332727,0.18918084,105750.0,105740.0,1.51029347]
[1748903333928,0.18918084,105750.0,105740.0,1.55276495]
[1748903334232,0.18918084,105750.0,105740.0,1.51030183]
[1748903335826,0.00014234,105750.0,105740.0,1.51030183]
[1748903336627,0.18917494,105750.0,105740.0,1.51030183]
[1748903336929,0.00014234,105750.0,105740.0,1.97766183]
[1748903338230,0.18917384,105750.0,105740.0,1.97766183]
[1748903338535,0.00014234,105750.0,105740.0,1.97766183]
[1748903338726,0.00014234,105750.0,105740.0,1.80010658]
[1748903338930,0.00014234,105750.0,105740.0,1.97766183]
[1748903339125,0.00034234,105750.0,105740.0,2.1055116]
[1748903339327,0.01896392,105770.0,105760.0,0.1890175]
[1748903339527,0.01858872,105770.0,105760.0,1.65505275]
[1748903339827,0.01878872,105770.0,105760.0,1.98827223]
[1748903340030,0.002,105780.0,105770.0,0.1889997]
[1748903340226,0.002,105780.0,105770.0,0.4513]
[1748903340227,0.1909818,105780.0,105770.0,0.4513]
[1748903340430,0.5517818,105780.0,105770.0,1.0389]
[1748903340726,0.1909818,105780.0,105770.0,0.68277088]
[1748903340926,0.1909818,105780.0,105770.0,1.27041088]
[1748903341131,0.1911818,105780.0,105770.0,1.27041088]
[1748903341328,0.1911818,105780.0,105770.0,1.10481457]
[1748903341527,0.1911818,105780.0,105770.0,1.29470525]
[1748903342026,0.1911818,105780.0,105770.0,1.65550525]
[1748903342231,0.1911818,105780.0,105770.0,1.29470525]
[1748903343231,0.1911818,105780.0,105770.0,1.36996176]
[1748903343441,0.1911818,105780.0,105770.0,1.18096246]
[1748903343742,0.1911818,105780.0,105770.0,1.46876196]
[1748903344439,0.1911818,105780.0,105770.0,1.53900543]
[1748903344636,0.1911818,105780.0,105770.0,1.59661173]
[1748903344837,0.1911818,105780.0,105770.0,1.52636826]
[1748903345040,0.1911818,105780.0,105770.0,1.46836186]
[1748903345235,0.2907818,105780.0,105770.0,1.59621163]
[1748903346445,0.1911818,105780.0,105770.0,1.59621163]
[1748903346738,0.1911818,105780.0,105770.0,1.40721223]
[1748903346935,0.1911818,105780.0,105770.0,1.59621163]
[1748903347244,0.2880818,105780.0,105770.0,1.59621163]
[1748903347444,0.2880818,105780.0,105770.0,1.5964281]
[1748903347845,0.3628,105840.0,105780.0,0.1889815]
[1748903348036,0.1889126,105820.0,105810.0,0.549714]
[1748903348231,0.1889126,105820.0,105810.0,1.584254]
[1748903348436,0.1889126,105820.0,105810.0,1.07811933]
[1748903348941,0.5497126,105820.0,105810.0,0.54840198]
[1748903349343,0.6446126,105820.0,105810.0,0.91742198]
[1748903349645,0.7429126,105820.0,105810.0,1.04882733]
[1748903350348,0.7429126,105820.0,105810.0,0.85989933]
[1748903350550,0.7429126,105820.0,105810.0,1.04882733]
[1748903351049,0.7429126,105820.0,105810.0,1.04863289]
[1748903353049,0.7429126,105820.0,105810.0,1.04863269]
[1748903353438,0.3821126,105820.0,105810.0,1.04863269]
[1748903353635,0.7429126,105820.0,105810.0,1.04863269]
[1748903353840,0.3821126,105820.0,105810.0,1.04863269]
[1748903354747,0.18891,105820.0,105810.0,0.81632]
[1748903354954,0.91706525,105820.0,105810.0,1.04857341]
[1748903355144,0.73951,105820.0,105810.0,1.04857341]
[1748903355337,0.73971,105820.0,105810.0,1.04857341]
[1748903355538,0.73971,105820.0,105810.0,0.39332561]
[1748903355744,1.01636525,105820.0,105810.0,0.85952561]
[1748903357047,1.01636525,105820.0,105810.0,1.04845341]
[1748903357255,1.01636525,105820.0,105810.0,0.85952561]
[1748903359756,1.01636525,105820.0,105810.0,0.85944561]
[1748903360453,1.01636525,105820.0,105810.0,1.04837331]
[1748903361054,0.83881,105820.0,105810.0,1.14207331]
[1748903362153,0.83881,105820.0,105810.0,0.95314561]
[1748903362459,0.83881,105820.0,105810.0,1.14211898]
[1748903363059,0.83881,105820.0,105810.0,1.14211878]
[1748903364156,0.47801,105820.0,105810.0,1.0987474]
[1748903364356,0.47801,105820.0,105810.0,1.14212663]
[1748903364660,0.83881,105820.0,105810.0,0.95319923]
[1748903364850,0.83881,105820.0,105810.0,1.04679923]
[1748903365051,0.83881,105820.0,105810.0,1.23572533]
[1748903366153,0.83881,105820.0,105810.0,1.35416533]
[1748903367858,0.83881,105820.0,105810.0,1.16523923]
[1748903368750,0.83881,105820.0,105810.0,1.35416483]
[1748903369861,0.83881,105820.0,105810.0,1.35412483]
[1748903371860,0.83881,105820.0,105810.0,1.41152886]
[1748903372058,0.83881,105820.0,105810.0,0.94548886]
[1748903372260,0.83881,105820.0,105810.0,1.41148886]
[1748903372766,0.83881,105820.0,105810.0,0.94548886]
[1748903373063,0.83881,105820.0,105810.0,1.41148886]
[1748903373254,0.83881,105820.0,105810.0,0.94548886]
[1748903373450,0.83881,105820.0,105810.0,1.41148886]
[1748903373765,0.83881,105820.0,105810.0,1.41168667]
[1748903373969,0.83881,105820.0,105810.0,0.94568667]
[1748903374170,0.83881,105820.0,105810.0,1.41168667]
[1748903374663,0.96869731,105820.0,105810.0,0.51494362]
[1748903374862,0.96869731,105820.0,105810.0,0.88068107]
[1748903375256,0.96869731,105820.0,105810.0,0.83257704]
[1748903376268,0.96869731,105820.0,105810.0,1.12110284]
[1748903376472,0.83881,105820.0,105810.0,1.12110284]
[1748903376771,0.96869731,105820.0,105810.0,1.19136539]
[1748903376977,0.96869731,105820.0,105810.0,1.00243959]
[1748903377983,0.96869731,105820.0,105810.0,1.05984362]
[1748903378583,0.96869731,105820.0,105810.0,0.71250757]
[1748903378774,0.96869731,105820.0,105810.0,1.17846757]
[1748903378979,0.96869731,105820.0,105810.0,0.98954107]
[1748903379672,0.96869731,105820.0,105810.0,1.03289403]
[1748903380074,0.96869731,105820.0,105810.0,0.56693403]
[1748903380268,0.96869731,105820.0,105810.0,0.98954107]
[1748903380467,0.96869731,105820.0,105810.0,0.98970732]
[1748903380668,0.96869731,105820.0,105810.0,1.03306398]
[1748903381183,0.96869731,105820.0,105810.0,1.03306011]
[1748903383577,0.96869731,105820.0,105810.0,0.97565608]
[1748903384078,0.96869731,105820.0,105810.0,0.50969608]
[1748903384385,0.96869731,105820.0,105810.0,0.97561608]
[1748903384981,0.96869731,105820.0,105810.0,0.97559437]
[1748903385481,0.96869731,105820.0,105800.0,0.6188164]
[1748903385482,1.43344091,105820.0,105800.0,0.2140929]
[1748903385681,0.82007462,105810.0,105790.0,0.0866965]
[1748903385883,1.06438851,105800.0,105790.0,0.3672317]
[1748903386085,1.20538851,105800.0,105790.0,0.3672317]
[1748903386676,1.29387236,105800.0,105790.0,0.3426665]
[1748903386982,1.26432274,105800.0,105790.0,0.2491415]
[1748903387285,1.26432274,105800.0,105790.0,0.0373645]
[1748903387487,0.1889622,105790.0,105780.0,0.09514234]
[1748903387676,0.87914951,105790.0,105780.0,0.18476714]
[1748903387876,0.87914951,105790.0,105780.0,0.65064714]
[1748903388192,0.87914951,105790.0,105780.0,0.18476714]
[1748903388379,0.87914951,105790.0,105780.0,0.65064714]
[1748903389480,0.87914951,105790.0,105780.0,0.06325114]
[1748903389790,0.1889802,105780.0,105770.0,0.1994]
[1748903389982,1.11615482,105780.0,105770.0,1.00532]
[1748903390286,1.11615482,105780.0,105770.0,1.07558255]
[1748903390490,1.11615482,105780.0,105770.0,0.34]
[1748903390786,1.11615482,105780.0,105770.0,0.80588]
[1748903390988,1.11615482,105780.0,105770.0,0.34]
[1748903391182,1.12615482,105780.0,105770.0,0.80588]
[1748903391377,1.12615482,105780.0,105770.0,0.62588]
[1748903393092,1.12615482,105780.0,105770.0,0.16]
[1748903393494,1.12615482,105780.0,105770.0,0.2549]
[1748903395692,0.6521802,105780.0,105770.0,1.118498]
[1748903395899,0.28360334,105790.0,105780.0,0.1889802]
[1748903396096,0.33084784,105790.0,105780.0,0.5389802]
[1748903396287,0.69164784,105790.0,105780.0,0.4381802]
[1748903396494,0.82153515,105790.0,105780.0,0.4492]
[1748903396798,0.82153515,105790.0,105780.0,0.924]
[1748903396993,0.82153515,105790.0,105780.0,1.2108802]
[1748903397195,0.82153515,105790.0,105780.0,0.7360802]
[1748903397394,0.82153515,105790.0,105780.0,1.28562003]
[1748903398399,0.91923515,105790.0,105780.0,1.28562003]
[1748903399186,0.69164784,105790.0,105780.0,1.28562003]
[1748903400500,0.82153515,105790.0,105780.0,1.09555983]
[1748903400701,0.91793515,105790.0,105780.0,1.09555983]
[1748903400899,1.01543515,105790.0,105780.0,1.09555983]
[1748903401196,1.01543515,105790.0,105780.0,0.81118023]
[1748903401197,0.64741674,105790.0,105780.0,0.81118023]
[1748903401497,0.18910494,105790.0,105780.0,1.60844548]
[1748903401697,0.18930494,105790.0,105780.0,1.40798023]
[1748903402092,0.18910494,105790.0,105780.0,1.53786754]
[1748903402295,0.18930494,105790.0,105780.0,1.53786754]
[1748903402693,0.18930494,105790.0,105780.0,1.608321]
[1748903402990,0.18930494,105790.0,105780.0,1.53786754]
[1748903403193,0.18930494,105790.0,105780.0,1.58558323]
[1748903403594,0.18930494,105790.0,105780.0,1.40798023]
[1748903404188,0.18930494,105790.0,105780.0,0.81118023]
[1748903404189,0.18910494,105790.0,105780.0,0.81118023]
[1748903404394,0.18930494,105790.0,105780.0,1.40758023]
[1748903404593,0.18930494,105790.0,105780.0,1.21859983]
[1748903404793,0.55010494,105790.0,105780.0,0.74531983]
[1748903405001,0.73770794,105790.0,105780.0,0.24349754]
[1748903405199,0.1889983,105770.0,105760.0,0.09782252]
[1748903405401,1.2027493,105770.0,105760.0,2e-08]
[1748903405594,1.3013493,105770.0,105760.0,0.06000002]
[1748903405792,1.2068013,105770.0,105760.0,0.06000002]
[1748903406104,0.5697983,105770.0,105760.0,0.93952002]
[1748903406305,0.5699983,105770.0,105760.0,1.27236839]
[1748903406603,0.1889983,105770.0,105760.0,1.75676839]
[1748903406903,0.7276013,105770.0,105760.0,1.08371219]
[1748903407198,0.7276013,105770.0,105760.0,1.12521553]
[1748903407502,0.7276013,105770.0,105760.0,1.20084769]
[1748903407797,0.1891983,105770.0,105760.0,0.91558389]
[1748903407998,0.1891983,105770.0,105760.0,1.87394389]
[1748903408198,0.1889983,105770.0,105760.0,1.87394389]
[1748903408400,0.1891983,105770.0,105760.0,1.51314389]
[1748903408702,0.1891983,105770.0,105760.0,1.51322379]
[1748903409089,0.1891983,105770.0,105760.0,1.87402379]
[1748903409293,0.1891985,105770.0,105760.0,2.01012345]
[1748903409503,0.1891985,105770.0,105760.0,1.35800045]
[1748903409693,0.1891985,105770.0,105760.0,1.87394735]
[1748903409996,0.1891985,105770.0,105760.0,1.96042607]
[1748903410195,0.0002,105770.0,105760.0,1.96042607]
[1748903410397,0.1891985,105770.0,105760.0,1.96042607]
[1748903410700,0.0002,105770.0,105760.0,2.05972607]
[1748903410900,0.002,105780.0,105770.0,0.1889985]
[1748903411096,0.002,105780.0,105770.0,1.17675255]
[1748903411297,0.1911806,105780.0,105770.0,1.29039255]
[1748903411499,0.1911806,105780.0,105770.0,0.77507852]
[1748903411704,0.5519806,105780.0,105770.0,1.18384002]
[1748903412004,0.5519806,105780.0,105770.0,1.2864254]
[1748903412208,0.1911806,105780.0,105770.0,0.6227869]
[1748903412499,0.5519806,105780.0,105770.0,1.3855254]
[1748903412806,0.1911806,105780.0,105770.0,1.3854054]
[1748903413103,0.1909806,105780.0,105770.0,1.74646999]
[1748903413297,0.1909806,105780.0,105770.0,1.38566999]
[1748903413700,0.1911806,105780.0,105770.0,1.74646999]
[1748903413899,0.1911806,105780.0,105770.0,1.38566999]
[1748903414100,0.0022,105780.0,105770.0,2.01861299]
[1748903414297,0.0022,105780.0,105770.0,2.07502611]
[1748903414811,0.1911806,105780.0,105770.0,2.20388571]
[1748903414999,0.0022,105780.0,105770.0,2.02628271]
[1748903415804,0.1911806,105780.0,105770.0,0.73798554]
[1748903416108,0.3687836,105780.0,105770.0,1.44180301]
[1748903416301,0.1911806,105780.0,105770.0,1.35538989]
[1748903416701,0.1909806,105780.0,105770.0,1.41312155]
[1748903416906,0.1911806,105780.0,105770.0,1.41312155]
[1748903417410,0.1911806,105780.0,105770.0,1.37139006]
[1748903417608,0.1911806,105780.0,105770.0,1.41317655]
[1748903417908,0.2934806,105780.0,105770.0,1.41317655]
[1748903418207,0.2934806,105780.0,105770.0,1.413179]
[1748903418406,0.31247753,105780.0,105770.0,1.413179]
[1748903418806,0.31247753,105780.0,105770.0,0.939139]
[1748903419007,0.31247753,105780.0,105770.0,1.412459]
[1748903420410,0.31247753,105780.0,105770.0,1.41245921]
[1748903421110,0.31672707,105780.0,105770.0,1.41245921]
[1748903422202,0.85513007,105780.0,105770.0,0.75014081]
[1748903422513,0.95063007,105780.0,105770.0,1.06562915]
[1748903424098,0.95063007,105780.0,105770.0,1.06562817]
[1748903424600,0.95063007,105780.0,105770.0,0.96710817]
[1748903425008,0.95063007,105780.0,105770.0,1.15610667]
[1748903425603,0.77302707,105780.0,105770.0,1.25960667]
[1748903427007,0.77302707,105780.0,105770.0,1.07060817]
[1748903427206,0.67752707,105780.0,105770.0,1.25960657]
[1748903427613,0.67732707,105780.0,105770.0,1.36440657]
[1748903427807,0.67752707,105780.0,105770.0,1.3226184]
[1748903428009,0.78302707,105780.0,105770.0,1.36439681]
[1748903429315,0.96063007,105780.0,105770.0,0.47527841]
[1748903429609,0.96063007,105780.0,105770.0,0.94747841]
[1748903431524,0.96063007,105780.0,105770.0,0.94746909]
[1748903433612,0.96063007,105780.0,105770.0,0.47526909]
[1748903433807,0.96063007,105780.0,105770.0,0.94642909]
[1748903434918,0.96063007,105780.0,105770.0,0.94610909]
[1748903435307,0.96063007,105780.0,105770.0,0.94612821]
[1748903436811,1.28691517,105780.0,105770.0,0.04]
[1748903437007,0.1890169,105760.0,105750.0,0.0955]
[1748903437215,1.1082199,105760.0,105750.0,0.56614]
[1748903437715,0.1890348,105750.0,105740.0,0.27771166]
[1748903437910,0.1890348,105750.0,105740.0,0.96212]
[1748903437911,0.9367378,105750.0,105740.0,0.96212]
[1748903438213,0.9367378,105750.0,105740.0,0.8404]
[1748903438420,1.0401378,105750.0,105740.0,0.8404]
[1748903439424,1.05897558,105750.0,105740.0,0.91506565]
[1748903439920,1.05897558,105750.0,105740.0,0.91518565]
[1748903440122,1.05897558,105750.0,105740.0,0.44506565]
[1748903440315,1.05897558,105750.0,105740.0,0.91510565]
[1748903440712,1.05897558,105750.0,105740.0,0.91514565]
[1748903441516,1.17897558,105750.0,105740.0,0.18]
[1748903441723,0.1890527,105740.0,105730.0,0.09932311]
[1748903441916,0.8272557,105740.0,105730.0,0.76940311]
[1748903442220,0.9286557,105740.0,105730.0,0.20222311]
[1748903442619,0.9286557,105740.0,105730.0,0.67198311]
[1748903443120,0.9386557,105740.0,105730.0,0.20222311]
[1748903443513,0.9386557,105740.0,105730.0,0.47178311]
[1748903443920,0.9386557,105740.0,105730.0,0.46936001]
[1748903444919,0.7610527,105740.0,105730.0,0.83936001]
[1748903445220,0.9388557,105740.0,105730.0,1.13336001]
[1748903445426,0.9388557,105740.0,105730.0,1.03316001]
[1748903445718,0.9388557,105740.0,105730.0,0.40380001]
[1748903445921,0.9388557,105740.0,105730.0,0.67880001]
[1748903446122,0.9388557,105740.0,105730.0,0.67872001]
[1748903446422,0.9388557,105740.0,105730.0,0.46868001]
[1748903446719,0.9388557,105740.0,105730.0,1e-08]
[1748903446920,0.9288557,105740.0,105730.0,1e-08]
[1748903447119,1.1388557,105740.0,105730.0,0.46848001]
[1748903447313,1.1388557,105740.0,105730.0,0.46836001]
[1748903448220,1.1388557,105740.0,105730.0,0.46828001]
[1748903448724,1.1388557,105740.0,105730.0,0.46824001]
[1748903449123,1.2603757,105740.0,105730.0,0.56824001]
[1748903449525,1.35515171,105740.0,105730.0,0.10000001]
[1748903449833,1.35515171,105740.0,105730.0,1e-08]
[1748903450521,1.35940125,105740.0,105730.0,1e-08]
[1748903450718,1.60940125,105740.0,105730.0,1e-08]
[1748903450918,1.62358125,105740.0,105730.0,1e-08]
[1748903451113,1.37358125,105740.0,105730.0,1e-08]
[1748903451328,1.49959969,105740.0,105730.0,1e-08]
[1748903451523,0.81301224,105740.0,105730.0,0.18907051]
[1748903451723,0.94295796,105740.0,105730.0,0.56170001]
[1748903451924,0.94315796,105740.0,105730.0,0.56170001]
[1748903452120,0.94295796,105740.0,105730.0,0.66330001]
[1748903452313,0.94295796,105740.0,105730.0,1.32033051]
[1748903452314,0.52415954,105740.0,105730.0,1.32033051]
[1748903452629,0.06195954,105740.0,105730.0,1.92299623]
[1748903452822,0.66519778,105750.0,105740.0,0.1890527]
[1748903453022,0.66519778,105750.0,105740.0,0.5983527]
[1748903453326,0.66539778,105750.0,105740.0,0.5983527]
[1748903453621,0.57087748,105750.0,105740.0,0.5983527]
[1748903453823,0.57087748,105750.0,105740.0,0.6962527]
[1748903453824,0.57087258,105750.0,105740.0,0.6962527]
[1748903454143,0.57067258,105750.0,105740.0,0.6962527]
[1748903454325,0.57087258,105750.0,105740.0,0.6962527]
[1748903454825,0.02103778,105750.0,105740.0,1.0570527]
[1748903455222,0.21007258,105750.0,105740.0,1.10025762]
[1748903456121,0.21007258,105750.0,105740.0,1.0570527]
[1748903456628,0.21007258,105750.0,105740.0,0.6962527]
[1748903456831,0.74863091,105750.0,105740.0,1.2829727]
[1748903457624,0.57087258,105750.0,105740.0,1.2828127]
[1748903458838,0.21007258,105750.0,105740.0,1.2828127]
[1748903459126,0.20987258,105750.0,105740.0,1.32604383]
[1748903459328,0.21007258,105750.0,105740.0,1.32604383]
[1748903459827,0.57087258,105750.0,105740.0,1.32604383]
[1748903460028,0.74863091,105750.0,105740.0,0.6264]
[1748903460335,0.74863091,105750.0,105740.0,0.5285]
[1748903460526,0.95923091,105750.0,105740.0,0.99566]
[1748903460831,0.95923091,105750.0,105740.0,0.0993]
[1748903461132,0.1890527,105740.0,105730.0,1e-08]
[1748903461319,0.83101103,105740.0,105730.0,0.19000001]
[1748903461519,0.83101103,105740.0,105730.0,0.75442001]
[1748903461935,0.83101103,105740.0,105730.0,0.85152001]
[1748903462525,0.83101103,105740.0,105730.0,0.28710001]
[1748903462719,0.83101103,105740.0,105730.0,0.75430001]
[1748903463534,0.83101103,105740.0,105730.0,0.28710001]
[1748903463728,0.83101103,105740.0,105730.0,0.75434001]
[1748903463926,0.93751103,105740.0,105730.0,0.75434001]
[1748903464233,0.83411103,105740.0,105730.0,0.94341051]
[1748903464435,0.6563527,105740.0,105730.0,1.04561051]
[1748903464632,0.6563527,105740.0,105730.0,1.16481051]
[1748903464822,0.6565527,105740.0,105730.0,1.16481051]
[1748903465220,0.6563527,105740.0,105730.0,1.16481051]
[1748903465425,0.6563527,105740.0,105730.0,1.30719559]
[1748903465426,0.1892527,105740.0,105730.0,1.30719559]
[1748903465621,0.5498527,105740.0,105730.0,1.30719559]
[1748903465827,0.5500527,105740.0,105730.0,1.30719559]
[1748903466331,0.5500527,105740.0,105730.0,1.30695559]
[1748903467036,0.72781103,105740.0,105730.0,1.30723978]
[1748903467424,0.72781103,105740.0,105730.0,0.83999978]
[1748903467624,0.72781103,105740.0,105730.0,1.30727978]
[1748903467835,0.82981103,105740.0,105730.0,1.30727978]
[1748903468240,0.92921103,105740.0,105730.0,0.72079978]
[1748903468438,0.92921103,105740.0,105730.0,0.99896928]
[1748903468834,0.82981103,105740.0,105730.0,0.99896928]
[1748903469038,0.82981103,105740.0,105730.0,1.18803988]
[1748903469234,0.82981103,105740.0,105730.0,0.95536001]
[1748903469837,0.82981103,105740.0,105730.0,0.38620001]
[1748903470034,0.92821103,105740.0,105730.0,0.85312001]
[1748903470229,0.92821103,105740.0,105730.0,0.19000001]
[1748903470430,0.1890884,105720.0,105710.0,0.7161587]
[1748903470630,0.74621643,105720.0,105710.0,0.9510863]
[1748903470832,0.85311643,105720.0,105710.0,0.9510863]
[1748903471033,0.85311643,105720.0,105710.0,1.0539863]
[1748903473139,0.6753581,105720.0,105710.0,1.0539863]
[1748903473344,0.2076581,105720.0,105710.0,1.0539863]
[1748903473540,0.5684581,105720.0,105710.0,1.0539863]
[1748903474047,0.5686581,105720.0,105710.0,1.0555063]
[1748903474246,0.74641643,105720.0,105710.0,1.0555063]
[1748903477730,0.2078581,105720.0,105710.0,1.47403796]
[1748903478139,0.2076581,105720.0,105710.0,1.47403796]
[1748903478347,0.2078581,105720.0,105710.0,1.47403796]
[1748903479844,0.74641643,105720.0,105710.0,1.1943863]
[1748903480045,0.94221643,105720.0,105710.0,1.1943863]
[1748903480240,0.94221643,105720.0,105710.0,0.7271063]
[1748903480446,0.94221643,105720.0,105710.0,1.1945463]
[1748903483148,0.94991643,105720.0,105710.0,1.1945463]
[1748903484850,0.94991643,105720.0,105710.0,0.7271063]
[1748903485046,0.94991643,105720.0,105710.0,1.00476]
[1748903485652,0.94991643,105720.0,105710.0,1.1938663]
[1748903486148,0.94991643,105720.0,105710.0,0.538]
[1748903486447,0.94991643,105720.0,105710.0,0.90186]
[1748903488049,0.95416597,105720.0,105710.0,0.90186]